bitfinex-derivatives/quotes_BTCF0:USTF0_20250424
["timestamp","ask_amount","ask_price","bid_price","bid_amount"]
[1745516829364,0.1295842,92918.0,92917.0,0.71674]
[1745516829676,0.0220077,92918.0,92917.0,0.71674]
[1745516829866,0.01336633,92920.0,92917.0,0.71674]
[1745516830064,0.12094103,92920.0,92918.0,0.53684]
[1745516830465,0.01336633,92920.0,92919.0,0.73604]
[1745516830674,0.14321632,92920.0,92919.0,0.1992]
[1745516830875,0.1127742,92920.0,92919.0,0.73604]
[1745516831068,0.1137742,92920.0,92919.0,0.73604]
[1745516831473,0.13552252,92920.0,92919.0,0.73604]
[1745516832066,0.02794832,92920.0,92919.0,0.73604]
[1745516832467,0.02694832,92920.0,92919.0,0.73604]
[1745516832666,0.02694832,92920.0,92919.0,1.09684]
[1745516833267,0.13452252,92920.0,92919.0,1.09684]
[1745516833967,0.02694832,92920.0,92919.0,1.09684]
[1745516834672,0.03519922,92920.0,92919.0,1.09684]
[1745516834874,0.03519922,92920.0,92919.0,1.29474]
[1745516835868,0.03519922,92920.0,92919.0,1.29574]
[1745516837669,0.03519922,92920.0,92919.0,1.47574]
[1745516838878,0.03519922,92920.0,92919.0,1.5833154]
[1745516839069,0.02999922,92920.0,92919.0,1.5833154]
[1745516839379,0.02175656,92930.0,92919.0,1.47574]
[1745516839566,0.0537818,92930.0,92929.0,0.3608]
[1745516839970,0.0537818,92930.0,92929.0,0.89764]
[1745516840272,0.07579547,92930.0,92929.0,0.89764]
[1745516840677,0.02201367,92930.0,92929.0,0.89764]
[1745516840876,0.0537802,92932.0,92929.0,0.89764]
[1745516841079,0.1075626,92930.0,92929.0,0.3608]
[1745516841265,0.1156835,92930.0,92929.0,0.3608]
[1745516841472,0.1156835,92930.0,92929.0,0.89764]
[1745516841870,0.0081209,92930.0,92929.0,0.89764]
[1745516842066,0.1075626,92930.0,92929.0,0.89764]
[1745516843466,0.02178489,92933.0,92929.0,0.89764]
[1745516843672,0.00911663,92937.0,92932.0,0.9514198]
[1745516843974,0.03040658,92937.0,92933.0,0.1815]
[1745516844173,0.0011,92937.0,92933.0,0.71834]
[1745516844373,0.02300658,92937.0,92934.0,0.53684]
[1745516844574,0.02300658,92937.0,92934.0,0.6443978]
[1745516844774,0.02300658,92937.0,92935.0,0.53684]
[1745516845175,0.02300658,92937.0,92936.0,0.53684]
[1745516845479,0.02300658,92937.0,92934.0,0.53684]
[1745516845882,0.02300658,92937.0,92935.0,0.53684]
[1745516846072,0.02300658,92937.0,92934.0,0.53684]
[1745516846474,0.02300658,92937.0,92933.0,0.1815]
[1745516846475,0.02300658,92937.0,92936.0,0.53684]
[1745516846673,0.1991,92948.0,92936.0,0.53684]
[1745516846875,0.1991,92948.0,92945.0,0.3608]
[1745516847168,0.107543,92947.0,92946.0,0.53684]
[1745516847671,0.1991,92947.0,92946.0,0.53684]
[1745516848582,0.306643,92947.0,92946.0,0.53684]
[1745516849570,0.32810377,92947.0,92946.0,0.53684]
[1745516850281,0.33609245,92947.0,92946.0,0.53684]
[1745516854384,0.1075441,92946.0,92945.0,0.3608]
[1745516854575,0.2652441,92946.0,92945.0,0.3608]
[1745516857174,0.1075441,92946.0,92945.0,0.3608]
[1745516857682,0.1075441,92946.0,92945.0,0.3519]
[1745516860887,0.0933441,92946.0,92945.0,0.3519]
[1745516861076,0.1075522,92939.0,92938.0,0.1808]
[1745516861576,0.1075522,92939.0,92938.0,0.71764]
[1745516862186,0.1075522,92939.0,92938.0,0.71864]
[1745516863885,0.1075522,92939.0,92938.0,0.1818]
[1745516864185,0.1075522,92939.0,92938.0,0.71864]
[1745516864680,0.1076,92939.0,92925.0,0.3608]
[1745516864882,0.1075673,92926.0,92925.0,0.3608]
[1745516865076,0.1075673,92926.0,92925.0,0.43302578]
[1745516865279,0.0537873,92920.0,92914.0,0.1962]
[1745516865591,0.3608,92928.0,92882.0,0.36241498]
[1745516865592,0.1075893,92907.0,92882.0,0.36241498]
[1745516865776,0.1076171,92883.0,92882.0,0.36241498]
[1745516865981,0.0538048,92890.0,92883.0,0.32152204]
[1745516866487,0.1076147,92885.0,92884.0,0.32152204]
[1745516866681,0.1076159,92884.0,92883.0,0.32152204]
[1745516867886,0.1076159,92884.0,92883.0,0.51832204]
[1745516868074,0.1076159,92884.0,92883.0,0.52432204]
[1745516868388,0.11552167,92884.0,92883.0,0.52432204]
[1745516868683,0.11552167,92884.0,92883.0,0.52632204]
[1745516869187,0.11552167,92884.0,92883.0,0.52432204]
[1745516869394,0.11552167,92884.0,92883.0,0.52832204]
[1745516869884,0.30962167,92884.0,92883.0,0.70902204]
[1745516870485,0.30962167,92884.0,92883.0,1.06982204]
[1745516870682,0.30962167,92884.0,92883.0,0.70902204]
[1745516870883,0.00790577,92884.0,92883.0,0.70902204]
[1745516871190,0.02724343,92885.0,92883.0,0.70902204]
[1745516871391,0.02724343,92885.0,92884.0,0.32152204]
[1745516871783,0.02724343,92885.0,92884.0,0.70492204]
[1745516873099,0.02724343,92885.0,92884.0,0.70792204]
[1745516874184,0.02724343,92885.0,92884.0,0.71392204]
[1745516874384,0.03530111,92885.0,92884.0,0.71392204]
[1745516875786,0.14291581,92885.0,92884.0,0.71392204]
[1745516876192,0.03530111,92885.0,92884.0,0.71392204]
[1745516878495,0.0762,92898.0,92893.0,0.1076046]
[1745516878697,0.0762,92898.0,92897.0,0.68232204]
[1745516878996,0.08428588,92898.0,92897.0,0.68232204]
[1745516879190,0.1117666,92898.0,92897.0,0.68232204]
[1745516880093,0.0355666,92898.0,92897.0,0.68232204]
[1745516880393,0.1075912,92906.0,92897.0,0.78992284]
[1745516880601,0.1075904,92906.0,92905.0,0.3608]
[1745516880897,0.13480683,92906.0,92905.0,0.68232204]
[1745516881097,0.14288383,92906.0,92905.0,0.68232204]
[1745516881395,0.03529343,92906.0,92905.0,0.68232204]
[1745516881591,0.1075904,92906.0,92905.0,0.68232204]
[1745516881787,0.1085904,92906.0,92905.0,0.68232204]
[1745516881983,0.13531367,92906.0,92905.0,0.68232204]
[1745516882296,0.13431367,92906.0,92905.0,0.68232204]
[1745516882493,0.02672327,92906.0,92905.0,0.68332204]
[1745516882695,0.1075894,92907.0,92905.0,0.68332204]
[1745516882900,0.1075894,92907.0,92906.0,0.3792]
[1745516883192,0.1075894,92907.0,92906.0,0.70072204]
[1745516883587,0.14347435,92907.0,92906.0,0.32152204]
[1745516883895,0.14347435,92907.0,92906.0,0.52072204]
[1745516884098,0.33647435,92907.0,92906.0,0.52472204]
[1745516884491,0.33647435,92907.0,92906.0,0.70472204]
[1745516884694,0.33647435,92907.0,92906.0,0.70072204]
[1745516884893,0.22888495,92907.0,92906.0,0.70272204]
[1745516885090,0.03588495,92907.0,92906.0,1.06352204]
[1745516885293,0.07616,92911.0,92906.0,1.06352204]
[1745516885492,0.07616,92911.0,92910.0,0.32152204]
[1745516886101,0.2112444,92911.0,92910.0,0.31142674]
[1745516886400,0.1036598,92911.0,92910.0,0.31142674]
[1745516886801,0.2112444,92911.0,92910.0,0.31142674]
[1745516887194,0.1075879,92909.0,92907.0,0.1963]
[1745516887395,0.11579215,92909.0,92908.0,0.3964]
[1745516887595,0.11579215,92909.0,92908.0,0.70782674]
[1745516888792,0.00820425,92909.0,92908.0,0.70782674]
[1745516889105,0.1036598,92911.0,92908.0,0.70882674]
[1745516889296,0.1036598,92911.0,92910.0,0.31142674]
[1745516889694,0.2112444,92911.0,92910.0,0.31142674]
[1745516890594,0.2112444,92911.0,92910.0,0.31542674]
[1745516891702,0.2112444,92911.0,92910.0,0.31742674]
[1745516891906,0.1036598,92911.0,92910.0,0.31742674]
[1745516892204,0.1036598,92911.0,92910.0,0.31642674]
[1745516892401,0.11178975,92911.0,92910.0,0.31642674]
[1745516893005,0.21937435,92911.0,92910.0,0.30633152]
[1745516893705,0.11178975,92911.0,92910.0,0.30733152]
[1745516894896,0.21937435,92911.0,92910.0,0.30733152]
[1745516895308,0.21937435,92911.0,92910.0,0.30533152]
[1745516895499,0.21937435,92911.0,92910.0,0.30733152]
[1745516896508,0.21937435,92911.0,92910.0,0.30333152]
[1745516896806,0.21937435,92911.0,92910.0,0.30733152]
[1745516898707,0.21937435,92911.0,92910.0,0.006]
[1745516899110,0.1075893,92907.0,92906.0,0.35670445]
[1745516899600,0.1075893,92907.0,92906.0,0.65803597]
[1745516900503,0.1075893,92907.0,92906.0,0.66303597]
[1745516900808,0.1075893,92907.0,92906.0,0.66503597]
[1745516904408,0.1075893,92907.0,92906.0,0.66303597]
[1745516904603,0.2884893,92907.0,92906.0,0.66303597]
[1745516905007,0.2884893,92907.0,92906.0,0.6529403]
[1745516905496,0.2884893,92907.0,92906.0,0.6499403]
[1745516906199,0.2884893,92907.0,92906.0,0.34860878]
[1745516907407,0.2884893,92907.0,92906.0,0.34960878]
[1745516908112,0.11178975,92911.0,92906.0,0.6509403]
[1745516908308,0.11178975,92911.0,92907.0,0.69613152]
[1745516908809,0.11178975,92911.0,92908.0,0.30133152]
[1745516909111,0.1075858,92910.0,92908.0,0.30133152]
[1745516909312,0.1075858,92910.0,92909.0,0.68903152]
[1745516909614,0.21937555,92911.0,92909.0,0.3877]
[1745516909910,0.1075858,92910.0,92909.0,0.68903152]
[1745516910109,0.1075858,92910.0,92909.0,0.3877]
[1745516910406,0.1075858,92910.0,92909.0,0.68903152]
[1745516910600,0.1075869,92909.0,92908.0,0.002]
[1745516910798,0.1075869,92909.0,92908.0,0.30333152]
[1745516910997,0.1075869,92909.0,92908.0,0.29323578]
[1745516911510,0.2996869,92909.0,92908.0,0.29323578]
[1745516912500,0.2996869,92909.0,92908.0,0.29623578]
[1745516912700,0.2996869,92909.0,92908.0,0.67743578]
[1745516913314,0.2996869,92909.0,92908.0,0.48573578]
[1745516914607,0.03567478,92911.0,92908.0,0.48573578]
[1745516914908,0.07616,92914.0,92909.0,0.48493578]
[1745516915211,0.08417574,92914.0,92909.0,0.48493578]
[1745516915411,0.08417574,92914.0,92910.0,0.67703578]
[1745516915804,0.11203556,92914.0,92911.0,0.48293578]
[1745516916006,0.1075824,92913.0,92911.0,0.48293578]
[1745516916310,0.11203556,92914.0,92912.0,0.48993578]
[1745516916508,0.11203556,92914.0,92913.0,0.1897]
[1745516916710,0.11303556,92914.0,92913.0,0.48293578]
[1745516917011,0.11303556,92914.0,92913.0,0.37630511]
[1745516917215,0.11203556,92914.0,92913.0,0.67954089]
[1745516917913,0.11303556,92914.0,92913.0,0.67954089]
[1745516918417,0.03687556,92914.0,92913.0,0.67954089]
[1745516923122,0.03687556,92914.0,92913.0,0.66944624]
[1745516923616,0.14446746,92914.0,92913.0,0.66944624]
[1745516924112,0.58138356,92914.0,92887.0,0.3608]
[1745516924316,0.468422,92888.0,92887.0,0.20064493]
[1745516924505,0.468422,92888.0,92861.0,0.1076524]
[1745516924506,0.43688,92888.0,92861.0,0.1076524]
[1745516924711,0.3608,92874.0,92861.0,0.19464493]
[1745516924907,0.107647,92867.0,92862.0,0.19464493]
[1745516925106,0.107647,92867.0,92850.0,0.16052441]
[1745516925107,0.1076449,92869.0,92861.0,0.19464493]
[1745516925315,0.1864,92869.0,92860.0,0.16052441]
[1745516925613,0.3608,92875.0,92866.0,0.3608]
[1745516925814,0.1076399,92873.0,92867.0,0.19464493]
[1745516926414,0.1076399,92873.0,92868.0,0.39084493]
[1745516926621,0.3608,92875.0,92868.0,0.1962]
[1745516926822,0.1076383,92874.0,92869.0,0.19464493]
[1745516927319,0.1076383,92874.0,92867.0,0.004]
[1745516927320,0.4146187,92875.0,92870.0,0.57734493]
[1745516927507,0.4146187,92875.0,92870.0,0.3827]
[1745516927708,0.1076409,92872.0,92871.0,0.19464493]
[1745516927913,0.1076409,92872.0,92871.0,0.57734493]
[1745516928114,0.1076409,92872.0,92871.0,0.3827]
[1745516929123,0.1076409,92872.0,92871.0,0.56724498]
[1745516929423,0.1076409,92872.0,92871.0,0.57224498]
[1745516929724,0.1076409,92872.0,92871.0,0.57624498]
[1745516930825,0.1076409,92872.0,92871.0,0.20364493]
[1745516931029,0.1076522,92862.0,92861.0,0.1873]
[1745516931422,0.1076522,92862.0,92861.0,0.38194493]
[1745516932027,0.1076522,92862.0,92861.0,0.38994493]
[1745516932325,0.1076522,92862.0,92861.0,0.39594493]
[1745516932830,0.13106841,92862.0,92861.0,0.39594493]
[1745516933716,0.1076626,92853.0,92852.0,0.1989]
[1745516933926,0.4684626,92853.0,92852.0,0.1989]
[1745516934233,0.4684626,92853.0,92852.0,0.19464493]
[1745516934824,0.4694626,92853.0,92852.0,0.20164493]
[1745516935219,0.47759597,92853.0,92852.0,0.20164493]
[1745516935423,0.47759597,92853.0,92852.0,0.19464493]
[1745516935424,0.66249597,92853.0,92852.0,0.19464493]
[1745516935622,0.66249597,92853.0,92852.0,0.19864493]
[1745516935832,0.66249597,92853.0,92852.0,0.20164493]
[1745516936427,0.66249597,92853.0,92852.0,0.007]
[1745516941031,0.1076696,92847.0,92841.0,0.3905]
[1745516941331,0.0538377,92842.0,92823.0,0.00538657]
[1745516941632,0.1076951,92825.0,92824.0,0.19464493]
[1745516941829,0.1077032,92818.0,92817.0,0.19464493]
[1745516942126,0.1077033,92818.0,92811.0,0.1869]
[1745516942327,0.1953,92817.0,92811.0,0.1869]
[1745516942528,0.1953,92817.0,92813.0,0.3608]
[1745516942723,0.3030044,92817.0,92816.0,0.19572232]
[1745516943035,0.6638044,92817.0,92816.0,0.19572232]
[1745516943733,0.6638044,92817.0,92816.0,0.20272232]
[1745516943935,0.68797785,92817.0,92816.0,0.20272232]
[1745516944336,0.0538529,92816.0,92800.0,0.26052441]
[1745516944634,0.1077229,92801.0,92800.0,0.26052441]
[1745516944938,0.0538598,92804.0,92790.0,0.16052441]
[1745516945233,0.107734,92792.0,92790.0,0.16052441]
[1745516945433,0.107734,92792.0,92791.0,0.19464493]
[1745516945932,0.468534,92792.0,92791.0,0.19464493]
[1745516946432,0.848534,92792.0,92791.0,0.19464493]
[1745516947029,0.848534,92792.0,92786.0,0.00107774]
[1745516947030,0.0538679,92790.0,92770.0,0.16052441]
[1745516947236,0.1077582,92771.0,92770.0,0.30052441]
[1745516947434,0.10776,92770.0,92765.0,0.3608]
[1745516947635,0.0538789,92771.0,92765.0,0.3608]
[1745516947834,0.3608,92784.0,92766.0,0.19464493]
[1745516948142,0.0538789,92771.0,92770.0,0.16052441]
[1745516948338,0.1077601,92769.0,92768.0,0.1836]
[1745516948834,0.1077601,92769.0,92768.0,0.37824493]
[1745516949428,0.002,92771.0,92768.0,0.37824493]
[1745516949628,0.36885427,92792.0,92771.0,0.0538788]
[1745516949629,0.0538712,92785.0,92771.0,0.0538788]
[1745516949936,0.1077589,92770.0,92769.0,0.37874493]
[1745516950121,0.1077589,92770.0,92769.0,0.1841]
[1745516950326,0.1077589,92770.0,92769.0,0.37874493]
[1745516951038,0.0538754,92777.0,92769.0,0.37874493]
[1745516951235,0.1077508,92777.0,92776.0,0.19464493]
[1745516951629,0.1077508,92777.0,92776.0,0.57114493]
[1745516952539,0.1087508,92777.0,92776.0,0.57114493]
[1745516953036,0.002,92777.0,92776.0,0.57114493]
[1745516953234,0.002,92777.0,92776.0,0.67889693]
[1745516953430,0.00805427,92792.0,92787.0,0.1077386]
[1745516953632,0.0538621,92800.0,92789.0,0.3608]
[1745516953837,0.1818,92799.0,92791.0,0.1077338]
[1745516954040,0.1077308,92795.0,92790.0,0.16052441]
[1745516954230,0.1818,92799.0,92791.0,0.3679]
[1745516954431,0.1838041,92801.0,92797.0,0.3608]
[1745516954631,0.1077252,92799.0,92798.0,0.5555]
[1745516954942,0.07608,92816.0,92798.0,0.5555]
[1745516955137,0.07608,92816.0,92806.0,0.16052441]
[1745516955331,0.0538549,92813.0,92807.0,0.3776]
[1745516955530,0.1077132,92810.0,92807.0,0.3776]
[1745516955731,0.02381286,92813.0,92812.0,0.1077102]
[1745516955936,0.0081784,92816.0,92813.0,0.1077079]
[1745516956243,0.007,92816.0,92815.0,0.3608]
[1745516956635,0.13174857,92816.0,92815.0,0.9202]
[1745516956836,0.1077055,92816.0,92815.0,0.5594]
[1745516957840,0.3055055,92816.0,92815.0,0.5594]
[1745516958038,0.3608,92819.0,92815.0,0.5594]
[1745516958232,0.005,92816.0,92815.0,1.0279067]
[1745516958630,0.0052,92824.0,92820.0,0.1077001]
[1745516958939,0.01315924,92824.0,92823.0,0.4684974]
[1745516959139,0.0052,92824.0,92823.0,0.4684974]
[1745516959941,0.0122,92824.0,92823.0,0.4684974]
[1745516960440,0.0192,92824.0,92823.0,0.4694974]
[1745516961043,0.02711996,92824.0,92823.0,0.4694974]
[1745516961344,0.02711996,92824.0,92823.0,0.4704974]
[1745516961540,0.02711996,92824.0,92823.0,0.5782294]
[1745516961729,0.02711996,92824.0,92823.0,0.5772294]
[1745516961935,0.02372501,92834.0,92833.0,0.1076858]
[1745516962135,0.006,92824.0,92823.0,0.524346]
[1745516962442,0.006,92824.0,92823.0,0.885146]
[1745516962639,0.06182483,92839.0,92835.0,0.1076824]
[1745516962838,0.10768,92838.0,92837.0,0.3608]
[1745516963444,0.29208,92838.0,92837.0,0.3608]
[1745516964144,0.03415641,92839.0,92838.0,0.10768]
[1745516964344,0.03415641,92839.0,92838.0,0.10068]
[1745516964841,0.01798219,92839.0,92838.0,0.10068]
[1745516965044,0.01798219,92839.0,92838.0,0.569192]
[1745516965343,0.00798219,92839.0,92838.0,0.563192]
[1745516965542,0.005,92839.0,92838.0,0.563192]
[1745516965943,0.107671,92846.0,92845.0,0.1076715]
[1745516966245,0.1076738,92844.0,92840.0,0.0538383]
[1745516966542,0.1839,92845.0,92844.0,0.107673]
[1745516967343,0.2915719,92845.0,92844.0,0.107673]
[1745516968443,0.1839,92845.0,92844.0,0.107673]
[1745516968645,0.0254098,92847.0,92846.0,0.1076707]
[1745516968837,0.0254098,92847.0,92846.0,0.4684707]
[1745516969033,0.1330794,92847.0,92846.0,0.3608]
[1745516969238,0.1076719,92845.0,92844.0,0.005]
[1745516969842,0.1076719,92845.0,92844.0,0.002]
[1745516970544,0.1076754,92842.0,92840.0,0.1076773]
[1745516970842,0.03355988,92847.0,92846.0,0.1076707]
[1745516971143,0.0538316,92853.0,92846.0,0.3608]
[1745516971443,0.2406324,92852.0,92849.0,0.3608]
[1745516971744,0.1076661,92850.0,92849.0,0.3608]
[1745516972148,0.374,92852.0,92849.0,0.3608]
[1745516972546,0.1076661,92850.0,92849.0,0.3608]
[1745516972844,0.4278319,92852.0,92849.0,0.4684672]
[1745516973146,0.1076657,92851.0,92849.0,0.4684672]
[1745516973346,0.481664,92852.0,92850.0,0.1076661]
[1745516973546,0.294864,92852.0,92850.0,0.1076661]
[1745516973747,0.1076661,92850.0,92849.0,0.3608]
[1745516974339,0.1076661,92850.0,92849.0,0.002]
[1745516974941,0.1076681,92849.0,92847.0,0.3608]
[1745516975145,0.2990684,92848.0,92847.0,0.3608]
[1745516975445,0.1914,92848.0,92847.0,0.3608]
[1745516976048,0.1914,92848.0,92847.0,0.3638]
[1745516976247,0.2990684,92848.0,92847.0,0.3638]
[1745516976546,0.1914,92848.0,92847.0,0.3638]
[1745516976943,0.1076696,92847.0,92843.0,0.16052441]
[1745516977145,0.0538384,92841.0,92830.0,0.16052441]
[1745516977341,0.3846,92840.0,92836.0,0.0538406]
[1745516977648,0.1076835,92835.0,92831.0,0.1076874]
[1745516977847,0.0538407,92837.0,92831.0,0.1897]
[1745516978049,0.2987827,92836.0,92831.0,0.2435435]
[1745516978248,0.2987827,92836.0,92835.0,0.1897]
[1745516978445,0.1911,92836.0,92835.0,0.1897]
[1745516978745,0.2987823,92836.0,92835.0,0.3726]
[1745516979545,0.1911,92836.0,92835.0,0.4802835]
[1745516979743,0.1935,92840.0,92839.0,0.1076788]
[1745516979744,0.3922,92840.0,92839.0,0.1076788]
[1745516979950,0.3922,92840.0,92839.0,0.4684788]
[1745516980142,0.3922,92840.0,92839.0,0.3608]
[1745516980338,0.3922,92840.0,92836.0,0.0538409]
[1745516980542,0.3922,92840.0,92834.0,0.005]
[1745516980739,0.1076835,92835.0,92831.0,0.4473437]
[1745516980948,0.1987,92834.0,92833.0,0.1076857]
[1745516982154,0.1987,92834.0,92833.0,0.1106857]
[1745516982452,0.1987,92834.0,92833.0,0.1126857]
[1745516982654,0.3063846,92834.0,92833.0,0.005]
[1745516983044,0.1987,92834.0,92833.0,0.005]
[1745516983656,0.1987,92834.0,92833.0,0.1126858]
[1745516983853,0.1987,92834.0,92833.0,0.005]
[1745516984048,0.3063846,92834.0,92833.0,0.005]
[1745516984449,0.1987,92834.0,92833.0,0.005]
[1745516984748,0.3063846,92834.0,92833.0,0.005]
[1745516986158,0.3063846,92834.0,92833.0,0.00100181]
[1745516988062,0.3063846,92834.0,92833.0,0.00016697]
[1745516989353,0.3063846,92834.0,92820.0,0.32104882]
[1745516989354,0.107702,92819.0,92818.0,0.36063303]
[1745516989551,0.1077032,92818.0,92814.0,0.1933]
[1745516989857,0.4888032,92818.0,92812.0,0.3608]
[1745516990061,0.3811,92818.0,92813.0,0.107709]
[1745516990259,0.3811,92818.0,92812.0,0.3608]
[1745516990260,0.5104425,92818.0,92812.0,0.46851]
[1745516990458,0.5104425,92818.0,92813.0,0.107709]
[1745516990658,0.5104425,92818.0,92812.0,0.3608]
[1745516990956,0.4027393,92818.0,92817.0,0.00661606]
[1745516991160,0.4027393,92818.0,92817.0,0.39291606]
[1745516991659,0.5104425,92818.0,92817.0,0.39291606]
[1745516992061,0.5104425,92818.0,92817.0,0.39891606]
[1745516992260,0.5104425,92818.0,92817.0,0.38881102]
[1745516992757,0.4027393,92818.0,92817.0,0.38881102]
[1745516992952,0.2123393,92818.0,92817.0,0.38881102]
[1745516993157,0.2123393,92818.0,92817.0,0.68391542]
[1745516993158,0.0216393,92818.0,92817.0,0.68391542]
[1745516993357,0.2465482,92824.0,92819.0,0.1077015]
[1745516993563,0.1076978,92823.0,92821.0,0.3608]
[1745516993764,0.1076978,92823.0,92822.0,0.1851]
[1745516994356,0.02146228,92823.0,92822.0,0.2927986]
[1745516994555,0.1826,92824.0,92823.0,0.1076974]
[1745516994858,0.1076912,92829.0,92827.0,0.1076921]
[1745516995163,0.1826,92828.0,92825.0,0.0538472]
[1745516995459,0.1076928,92827.0,92826.0,0.1881]
[1745516995857,0.2902928,92827.0,92826.0,0.1881]
[1745516996361,0.0538452,92829.0,92826.0,0.1881]
[1745516996666,0.1076921,92828.0,92826.0,0.2957935]
[1745516997365,0.1826,92830.0,92827.0,0.1076927]
[1745516997565,0.0079254,92832.0,92829.0,0.3608]
[1745516997752,0.816,92859.0,92835.0,0.0538415]
[1745516997958,0.816,92859.0,92849.0,0.16052441]
[1745516997959,0.053829,92857.0,92849.0,0.16052441]
[1745516998157,0.3851,92856.0,92849.0,0.16052441]
[1745516998371,0.1076641,92852.0,92850.0,0.1947]
[1745516998565,0.1985,92851.0,92850.0,0.1947]
[1745516999969,0.20857089,92851.0,92850.0,0.3023661]
[1745517000659,0.21257089,92851.0,92850.0,0.3023661]
[1745517001264,0.01407089,92851.0,92850.0,0.3023661]
[1745517003064,0.1873,92864.0,92863.0,0.107651]
[1745517003267,0.4736414,92872.0,92870.0,0.1076429]
[1745517003268,0.2887417,92871.0,92870.0,0.1076429]
[1745517003567,0.20523165,92871.0,92870.0,0.1076429]
[1745517004068,0.21349496,92871.0,92870.0,0.1076429]
[1745517004961,0.03299496,92871.0,92870.0,0.1076429]
[1745517005860,0.01126331,92871.0,92870.0,0.1076429]
[1745517006871,0.107644,92869.0,92868.0,0.5521]
[1745517007372,0.3856,92870.0,92869.0,0.107644]
[1745517007575,0.1921,92870.0,92869.0,0.292544]
[1745517008271,0.2997429,92870.0,92869.0,0.292544]
[1745517008673,0.1921,92870.0,92869.0,0.292544]
[1745517009475,0.1921,92870.0,92869.0,0.481744]
[1745517010371,0.1931,92870.0,92869.0,0.482744]
[1745517010564,0.001,92870.0,92869.0,0.482744]
[1745517010769,0.00826331,92871.0,92870.0,0.1076429]
[1745517010978,0.1814,92886.0,92876.0,0.1076359]
[1745517011164,0.2352122,92886.0,92876.0,0.4684359]
[1745517011362,0.1814,92886.0,92876.0,0.4684359]
[1745517011573,0.1814,92886.0,92876.0,0.8320359]
[1745517011775,0.2890245,92886.0,92876.0,0.8320359]
[1745517011971,0.1076266,92885.0,92876.0,0.8320359]
[1745517012878,0.1814,92886.0,92876.0,0.8320359]
[1745517013073,0.1877,92893.0,92892.0,0.1076174]
[1745517013371,0.1979,92899.0,92893.0,0.1076162]
[1745517013580,0.3055099,92899.0,92897.0,0.1076108]
[1745517013770,0.1076104,92898.0,92897.0,0.1076108]
[1745517014277,0.1076116,92897.0,92896.0,0.1902]
[1745517014472,0.13711306,92897.0,92896.0,0.2978128]
[1745517014874,0.02950146,92897.0,92896.0,0.2978128]
[1745517015179,0.006,92898.0,92897.0,0.1076116]
[1745517015381,0.2039,92898.0,92897.0,0.2978116]
[1745517015579,0.2039,92898.0,92897.0,0.2918116]
[1745517016281,0.22495796,92898.0,92891.0,0.0538087]
[1745517016478,0.1076133,92896.0,92894.0,0.1076148]
[1745517016670,0.1798,92895.0,92892.0,0.1958]
[1745517016871,0.1798,92895.0,92894.0,0.1076148]
[1745517017480,0.1798,92895.0,92894.0,0.3034148]
[1745517018184,0.1818,92895.0,92894.0,0.3034148]
[1745517018691,0.1848,92895.0,92894.0,0.3034148]
[1745517020188,0.005,92895.0,92894.0,0.6642148]
[1745517020581,0.197,92906.0,92901.0,0.0538035]
[1745517020885,0.197,92906.0,92905.0,0.1076023]
[1745517021681,0.02557868,92906.0,92905.0,0.1076023]
[1745517021879,0.02557868,92906.0,92905.0,0.4684023]
[1745517022080,0.23066608,92906.0,92905.0,0.4684023]
[1745517022280,0.2,92906.0,92905.0,0.4684023]
[1745517022784,0.22134851,92906.0,92905.0,0.4684023]
[1745517023189,0.22634851,92906.0,92905.0,0.4684023]
[1745517023394,0.1805,92914.0,92909.0,0.0537983]
[1745517023694,0.187,92913.0,92912.0,0.1075942]
[1745517023996,0.187,92913.0,92912.0,0.1045942]
[1745517024394,0.21036168,92914.0,92913.0,0.1075931]
[1745517024395,0.02986168,92914.0,92913.0,0.1075931]
[1745517024589,0.3683,92919.0,92918.0,0.1075873]
[1745517024790,0.187,92919.0,92918.0,0.4683873]
[1745517024983,0.20816179,92919.0,92918.0,0.4653873]
[1745517025390,0.13674757,92919.0,92918.0,0.4653873]
[1745517025695,0.13674757,92919.0,92918.0,0.1045873]
[1745517026091,0.13674757,92919.0,92904.0,0.21432611]
[1745517026092,0.22756147,92919.0,92904.0,0.21432611]
[1745517026293,0.1075925,92914.0,92909.0,0.1934]
[1745517026498,0.1984,92913.0,92912.0,0.1075942]
[1745517027496,0.2521968,92913.0,92908.0,0.3608]
[1745517027690,0.2521968,92913.0,92912.0,0.002]
[1745517027691,0.3059931,92913.0,92912.0,0.002]
[1745517027891,0.6667931,92913.0,92912.0,0.002]
[1745517029100,0.6667931,92913.0,92912.0,0.0003505]
[1745517030502,0.5592,92913.0,92912.0,0.0003505]
[1745517030702,0.1984,92913.0,92912.0,0.1079447]
[1745517031198,0.1984,92913.0,92912.0,0.0003505]
[1745517031393,0.6667931,92913.0,92912.0,0.0003505]
[1745517032705,0.6667931,92913.0,92900.0,0.16052441]
[1745517032706,0.0537972,92912.0,92890.0,0.16052441]
[1745517033000,0.1076171,92893.0,92882.0,0.1884]
[1745517033304,0.3737,92892.0,92887.0,0.1076226]
[1745517033503,0.3737,92892.0,92888.0,0.1076214]
[1745517034209,0.3737,92892.0,92886.0,0.8526237]
[1745517034504,0.3737,92892.0,92888.0,0.004]
[1745517034703,0.1076186,92891.0,92888.0,0.004]
[1745517034905,0.1076186,92891.0,92888.0,0.1877]
[1745517035105,0.1836,92890.0,92888.0,0.1877]
[1745517035705,0.1836,92890.0,92888.0,0.1917]
[1745517036401,0.1891,92892.0,92891.0,0.1076186]
[1745517036595,0.1836,92896.0,92895.0,0.1076139]
[1745517037312,0.1836,92896.0,92895.0,0.1276139]
[1745517037500,0.1836,92896.0,92895.0,0.5100139]
[1745517037700,0.053802,92904.0,92895.0,0.4024]
[1745517037908,0.5516,92905.0,92898.0,0.0538049]
[1745517037909,0.1942,92903.0,92898.0,0.0538049]
[1745517038204,0.1942,92903.0,92899.0,0.3824]
[1745517038407,0.1076064,92902.0,92899.0,0.5000088]
[1745517038609,0.1076079,92901.0,92899.0,0.3924]
[1745517038802,0.3018079,92901.0,92899.0,0.3924]
[1745517039108,0.1942,92901.0,92899.0,0.5000089]
[1745517039704,0.1942,92901.0,92900.0,0.1076081]
[1745517039907,0.1942,92901.0,92900.0,0.1176081]
[1745517040204,0.1942,92901.0,92900.0,0.5095081]
[1745517040904,0.1942,92901.0,92900.0,0.5115081]
[1745517042407,0.5516,92905.0,92904.0,0.1076035]
[1745517042601,0.5516,92905.0,92902.0,0.0538028]
[1745517042805,0.5516,92905.0,92903.0,0.3773]
[1745517043005,0.1922,92904.0,92903.0,0.4949047]
[1745517043209,0.1922,92904.0,92903.0,0.3873]